bitfinex/quotes_SOLUSD_20250814
["timestamp","ask_amount","ask_price","bid_price","bid_amount"]
[1755179654779,11.11916389,196.68,196.55,0.7]
[1755179655001,23.83016653,196.68,196.55,0.7]
[1755179655207,26.0,196.65,196.56,44.7]
[1755179655375,0.67,196.64,196.56,44.7]
[1755179655791,26.0,196.6,196.56,44.7]
[1755179656014,0.67,196.59,196.56,44.7]
[1755179656202,26.0,196.6,196.56,44.7]
[1755179656401,26.0,196.6,196.57,0.7]
[1755179657619,26.0,196.6,196.53,0.7]
[1755179657792,26.0,196.6,196.58,44.62]
[1755179657989,6.09476284,196.68,196.59,0.7]
[1755179658191,11.17917016,196.68,196.59,0.7]
[1755179658624,23.8901728,196.68,196.58,44.62]
[1755179658808,23.8901728,196.68,196.59,0.7]
[1755179659428,23.8901728,196.68,196.51,16.63452308]
[1755179659429,36.0,196.65,196.45,15.258246]
[1755179659603,36.0,196.65,196.46,0.7]
[1755179659604,26.0,196.58,196.46,0.7]
[1755179659793,26.0,196.54,196.47,44.78]
[1755179659996,5.08646998,196.6,196.48,15.80621557]
[1755179660211,26.0,196.57,196.49,0.7]
[1755179660419,5.08646998,196.6,196.5,15.10621557]
[1755179660626,0.67,196.66,196.51,0.7]
[1755179660793,17.79811847,196.65,196.51,0.7]
[1755179661204,26.0,196.62,196.51,0.7]
[1755179661401,5.0851767,196.65,196.52,31.74073865]
[1755179661611,5.0851767,196.65,196.54,31.74073865]
[1755179661935,5.08465958,196.67,196.56,20.19358466]
[1755179662142,26.0,196.64,196.56,20.19358466]
[1755179662299,5.08465958,196.67,196.57,0.7]
[1755179662808,17.79630853,196.67,196.57,0.7]
[1755179662999,26.0,196.64,196.57,0.7]
[1755179663195,26.0,196.64,196.58,44.76]
[1755179663823,26.0,196.6,196.58,44.76]
[1755179664929,26.0,196.6,196.53,33.56]
[1755179665140,26.67,196.6,196.53,33.56]
[1755179665308,26.67,196.6,196.54,44.72]
[1755179665712,26.0,196.56,196.54,44.72]
[1755179667924,5.08776392,196.55,196.54,44.72]
[1755179668223,5.08491813,196.66,196.54,45.42]
[1755179668428,12.71294177,196.65,196.55,0.7]
[1755179669008,26.0,196.62,196.55,0.7]
[1755179669235,26.0,196.62,196.56,44.56]
[1755179669842,26.0,196.58,196.56,44.56]
[1755179670010,24.54977136,196.68,196.57,0.7]
[1755179670211,5.08465958,196.67,196.57,0.7]
[1755179670529,17.79630853,196.67,196.57,0.7]
[1755179670922,26.0,196.64,196.57,0.7]
[1755179671243,17.79630853,196.67,196.57,0.7]
[1755179672009,5.08465958,196.67,196.57,5.78718625]
[1755179672319,26.0,196.64,196.58,0.69]
[1755179672714,5.08465958,196.67,196.58,0.69]
[1755179673118,10.21841459,196.68,196.59,15.10621557]
[1755179673321,10.21841459,196.68,196.6,0.69]
[1755179673544,26.0,196.65,196.6,45.01]
[1755179673726,26.0,196.65,196.6,44.32]
[1755179673921,5.08543531,196.64,196.6,45.01]
[1755179674346,5.08543531,196.64,196.6,44.32]
[1755179674347,26.0,196.63,196.6,44.32]
[1755179674651,26.0,196.63,196.53,38.64804402]
[1755179674652,26.0,196.63,196.61,44.26]
[1755179674936,17.79902359,196.64,196.61,44.26]
[1755179675317,0.71,196.63,196.61,44.26]
[1755179675815,17.79902359,196.64,196.61,44.26]
[1755179676019,18.50902359,196.64,196.61,44.26]
[1755179676250,18.50902359,196.64,196.53,33.56]
[1755179676251,26.0,196.61,196.53,33.56]
[1755179676411,26.71,196.61,196.54,44.16]
[1755179676942,26.0,196.61,196.54,44.16]
[1755179677245,26.0,196.61,196.54,44.85]
[1755179677425,26.0,196.61,196.54,44.16]
[1755179677624,26.0,196.61,196.55,0.69]
[1755179677835,5.08543531,196.64,196.55,15.79621557]
[1755179678042,17.79645307,196.67,196.56,5.77750508]
[1755179678240,5.08465958,196.67,196.57,15.79621557]
[1755179678546,5.08465958,196.67,196.58,0.69]
[1755179678862,5.08465958,196.67,196.59,44.12]
[1755179679151,10.2183893,196.68,196.6,5.08646998]
[1755179679356,0.06,196.67,196.6,5.77646998]
[1755179679653,0.06,196.67,196.61,0.69]
[1755179680440,0.06,196.67,196.62,27.60649159]
[1755179680623,0.06,196.67,196.6,17.80264495]
[1755179680624,0.06,196.68,196.63,0.69]
[1755179680827,0.06,196.68,196.64,0.69]
[1755179681030,0.06,196.68,196.65,44.69]
[1755179681230,0.06,196.68,196.66,0.69]
[1755179681429,0.06,196.68,196.67,0.69]
[1755179682142,0.06,196.68,196.67,43.98]
[1755179683336,26.0,196.65,196.58,0.69]
[1755179683649,26.0,196.65,196.59,43.92]
[1755179684229,26.0,196.65,196.56,0.69]
[1755179684573,26.0,196.65,196.57,43.88]
[1755179685255,26.0,196.65,196.58,5.77682653]
[1755179685848,0.06,196.68,196.59,15.79621557]
[1755179686050,0.06,196.68,196.6,0.69]
[1755179686247,5.14448971,196.68,196.6,0.69]
[1755179686774,3.7497155,196.67,196.6,0.69]
[1755179687157,3.7497155,196.66,196.6,0.69]
[1755179687361,5.08543531,196.64,196.6,0.69]
[1755179687953,26.0,196.62,196.61,43.72]
[1755179688138,29.75495431,196.62,196.61,43.72]
[1755179689053,26.0,196.62,196.61,43.72]
[1755179689357,26.0,196.62,196.53,51.14846121]
[1755179689358,9.19069122,196.62,196.53,33.56]
[1755179689563,3.76473863,196.61,196.54,43.7]
[1755179689760,26.0,196.59,196.54,43.7]
[1755179689968,3.76473863,196.58,196.54,43.7]
[1755179690268,4.10473863,196.57,196.53,33.56]
[1755179690439,69.23059707,196.62,196.46,15.258246]
[1755179690440,4.10473863,196.56,196.46,15.258246]
[1755179690636,4.10473863,196.55,196.45,0.03]
[1755179690861,4.10473863,196.54,196.45,0.03]
[1755179691161,4.10473863,196.53,196.45,0.03]
[1755179691462,17.81079843,196.51,196.45,0.03]
[1755179691638,3.76473863,196.5,196.46,43.74]
[1755179691843,3.76473863,196.49,196.46,43.74]
[1755179692047,3.76473863,196.48,196.46,43.74]
[1755179692266,4.10473863,196.47,196.45,0.03]
[1755179692442,4.10473863,196.46,196.4,33.54]
[1755179692642,4.10473863,196.45,196.4,33.54]
[1755179692867,26.0,196.48,196.34,0.69]
[1755179692868,4.10473863,196.44,196.34,0.69]
[1755179693057,3.76473863,196.43,196.34,0.69]
[1755179693258,5.09139045,196.41,196.34,0.69]
[1755179693442,4.10473863,196.4,196.35,43.7]
[1755179693642,5.09139045,196.41,196.35,43.7]
[1755179693643,4.10473863,196.39,196.35,43.7]
[1755179693848,3.76473863,196.38,196.35,43.7]
[1755179694171,17.81986659,196.41,196.35,43.7]
[1755179694172,3.76473863,196.37,196.35,43.7]
[1755179694362,3.76473863,196.36,196.35,43.7]
[1755179695373,3.76473863,196.37,196.35,43.7]
[1755179695567,26.0,196.4,196.35,43.7]
[1755179695772,5.41840566,196.43,196.35,43.7]
[1755179695773,3.77229414,196.39,196.36,0.69]
[1755179695959,5.07840566,196.43,196.37,15.10621557]
[1755179696154,5.07840566,196.43,196.37,27.60649159]
[1755179696155,26.0,196.43,196.37,27.60649159]
[1755179696357,5.08905852,196.5,196.38,13.19027602]
[1755179696669,3.76965497,196.49,196.38,0.69]
[1755179696855,5.08905852,196.5,196.38,13.19027602]
[1755179696856,3.76965497,196.48,196.38,13.19027602]
[1755179697171,3.76965497,196.47,196.39,13.19027602]
[1755179697380,2.6552636,196.53,196.44,17.59088892]
[1755179697669,2.6552636,196.53,196.45,43.58]
[1755179697670,26.0,196.5,196.45,43.58]
[1755179698044,5.08852874,196.53,196.46,0.69]
[1755179698247,5.08852874,196.53,196.4,15.79621557]
[1755179698248,4.10719078,196.52,196.4,15.79621557]
[1755179698571,26.0,196.5,196.41,43.62]
[1755179699181,5.08931752,196.49,196.41,43.62]
[1755179699345,31.08931752,196.49,196.41,43.62]
[1755179700283,31.08931752,196.49,196.39,5.0918837]
[1755179700284,26.0,196.46,196.36,0.69]
[1755179700459,3.76707694,196.45,196.37,43.5]
[1755179700778,26.0,196.46,196.38,15.77621557]
[1755179701073,0.67,196.52,196.42,12.50027602]
[1755179701280,0.67,196.52,196.34,0.03]
[1755179701281,5.08931752,196.49,196.34,0.03]
[1755179701480,26.0,196.46,196.36,0.67]
[1755179701650,26.0,196.46,196.34,0.03]
[1755179701651,0.67,196.45,196.34,0.03]
[1755179701846,26.0,196.46,196.36,0.03]
[1755179702064,26.67,196.46,196.37,0.03]
[1755179702488,26.0,196.46,196.38,44.27]
[1755179702652,5.08931752,196.49,196.41,12.50027602]
[1755179702856,5.08931752,196.49,196.39,15.77621557]
[1755179702857,17.81261132,196.49,196.39,0.67]
[1755179703181,26.0,196.46,196.4,43.66]
[1755179703352,4.99404421,196.53,196.37,0.03]
[1755179703353,26.0,196.42,196.37,0.03]
[1755179703554,26.0,196.42,196.41,43.76]
[1755179704062,26.0,196.42,196.41,43.84]
[1755179704063,26.67,196.42,196.41,43.84]
[1755179704249,26.67,196.42,196.37,0.03]
[1755179704451,26.0,196.37,196.34,1e-08]
[1755179704791,26.0,196.34,196.18,0.67]
[1755179704955,26.0,196.32,196.18,0.67]
[1755179705148,4.42705626,196.31,196.15,0.67]
[1755179705345,26.0,196.27,196.16,43.88]
[1755179705595,26.0,196.27,196.04,15.320131]
[1755179705596,26.0,196.23,196.04,15.990131]
[1755179705750,26.67,196.22,196.04,0.03]
[1755179705952,10.0,196.25,196.05,44.53]
[1755179705953,30.42916999,196.21,196.05,44.53]
[1755179706177,26.0,196.16,196.05,43.86]
[1755179706355,0.67,196.15,196.04,0.03]
[1755179706553,26.0,196.14,196.05,43.86]
[1755179706783,26.0,196.12,196.05,43.86]
[1755179707363,26.0,196.12,196.08,12.50027602]
[1755179707592,26.0,196.15,196.09,13.17027602]
[1755179707777,26.0,196.13,196.09,0.67]
[1755179707981,26.0,196.13,196.05,48.96068547]
[1755179707982,26.0,196.13,196.1,0.67]
[1755179708489,26.0,196.14,196.11,0.67]
[1755179708684,26.0,196.14,196.12,44.59]
[1755179708987,26.0,196.17,196.13,43.9]
[1755179709200,26.0,196.17,196.09,0.67]
[1755179709365,26.0,196.13,196.1,43.88]
[1755179709565,0.67,196.12,196.04,0.03]
[1755179709997,26.67,196.12,196.04,0.03]
[1755179710503,26.0,196.13,196.04,0.03]
[1755179710799,0.67,196.12,196.04,0.03]
[1755179710981,26.0,196.13,196.05,43.96]
[1755179711181,17.84257748,196.16,196.06,18.64548427]
[1755179711393,5.09761941,196.17,196.07,0.67]
[1755179711580,5.09761941,196.17,196.08,15.10621557]
[1755179711783,17.84166793,196.17,196.07,0.67]
[1755179712229,26.0,196.14,196.04,0.7]
[1755179712519,0.67,196.13,196.05,44.0]
[1755179712705,0.67,196.13,196.06,44.0]
[1755179712918,17.84166793,196.17,196.06,44.0]
[1755179713087,17.84166793,196.17,196.06,44.67]
[1755179713088,26.0,196.14,196.06,44.67]
[1755179713285,18.51530668,196.13,196.04,0.03]
[1755179713492,26.0,196.1,196.0,2246.21261651]
[1755179713714,0.67,196.09,196.02,44.11]
[1755179714994,0.67,196.09,196.0,2246.21261651]
[1755179714995,0.67,196.09,196.0,2220.70725157]
[1755179715197,26.0,196.03,196.0,2167.88272559]
[1755179715416,0.67,196.09,196.0,2167.88272559]
[1755179715417,5.77152025,196.02,196.0,2138.21339656]
[1755179715638,0.67,196.01,196.0,2071.01487994]
[1755179715821,0.67,196.01,196.0,2007.07069131]
[1755179716031,0.67,196.01,196.0,1973.94697405]
[1755179716333,5.10152025,196.02,196.0,1973.94697405]
[1755179716502,5.68152025,196.02,196.0,1944.48894938]
[1755179716703,5.68152025,196.02,196.0,1917.66614163]
[1755179716704,5.10152025,196.02,196.0,1917.66614163]
[1755179717403,26.0,196.01,196.0,1917.66614163]
[1755179717818,26.58,196.01,196.0,1854.83527263]
[1755179718006,26.58,196.01,196.0,1776.04281376]
[1755179718206,36.58,196.01,196.0,1716.29332089]
[1755179718507,26.0,196.01,196.0,1702.05332089]
[1755179718823,26.58,196.01,196.0,1599.21367844]
[1755179719115,26.58,196.01,196.0,1514.58828548]
[1755179719318,31.68178052,196.01,196.0,1514.58828548]
[1755179719524,46.78799609,196.01,196.0,1462.15558126]
[1755179719733,56.78799609,196.01,196.0,1313.69110428]
[1755179720028,56.78799609,196.01,196.0,1153.0174682]
[1755179720234,56.78799609,196.01,196.0,1131.6574682]
[1755179720432,46.78799609,196.01,196.0,1103.1774682]
[1755179720600,31.68178052,196.01,196.0,1027.58557624]
[1755179720803,56.78799609,196.01,196.0,924.14032892]
[1755179721115,56.78799609,196.01,196.0,770.79319787]
[1755179721306,41.68178052,196.01,196.0,761.12189095]
[1755179721633,5.10178052,196.01,196.0,721.48970491]
[1755179721814,15.305732,196.1,196.0,715.03970491]
[1755179722003,25.0891211,196.35,196.01,45.11]
[1755179722004,18.37565151,196.18,196.01,45.11]
[1755179722202,0.58,196.15,196.01,45.11]
[1755179722528,15.30339,196.11,196.01,44.44]
[1755179722733,5.09891902,196.12,196.03,15.10621557]
[1755179723023,17.84621659,196.12,196.04,45.11]
[1755179723204,26.0,196.09,196.04,0.67]
[1755179723395,26.0,196.09,196.0,670.04970491]
[1755179723396,26.0,196.06,196.05,44.46]
[1755179723600,26.0,196.05,196.0,670.04970491]
[1755179724000,26.0,196.05,196.01,45.15]
[1755179724229,17.8498572,196.08,196.01,45.15]
[1755179724422,5.0999592,196.08,196.01,45.15]
[1755179724624,5.0999592,196.08,196.02,0.67]
[1755179725019,5.0999592,196.08,196.04,0.03]
[1755179725209,5.0999592,196.08,196.05,44.5]
[1755179725417,5.10033711,196.07,196.05,44.5]
[1755179725613,5.10033711,196.07,196.06,0.67]
[1755179726148,5.10033711,196.07,196.04,0.03]
[1755179726149,26.0,196.05,196.04,0.03]
[1755179726306,26.0,196.05,196.04,44.51]
[1755179726507,5.10033711,196.07,196.04,45.18]
[1755179726815,5.10033711,196.07,196.05,0.67]
[1755179727015,5.10033711,196.07,196.04,44.51]
[1755179727016,26.0,196.05,196.04,44.51]
[1755179727631,26.0,196.07,196.04,45.18]
[1755179727809,26.0,196.07,196.04,44.51]
[1755179728011,26.0,196.06,196.05,0.67]
[1755179729521,4.59066564,196.05,196.04,44.51]
[1755179729719,4.59066564,196.05,196.04,45.18]
[1755179730440,4.59066564,196.05,196.04,0.03]
[1755179730602,26.0,196.03,196.02,0.03]
[1755179730935,26.0,196.03,196.02,44.33]
[1755179731413,30.59113401,196.03,196.02,44.33]
[1755179731915,30.59113401,196.03,196.0,670.04970491]
[1755179732920,0.58,196.02,196.0,583.49062151]
[1755179733134,26.58,196.01,196.0,507.39240798]
[1755179733312,4.59113401,196.03,196.0,507.39240798]
[1755179733313,14.59113401,196.03,196.0,507.39240798]
[1755179733510,0.58,196.01,196.0,507.39240798]
[1755179733704,0.58,196.01,196.0,504.8435684]
[1755179733907,25.68621557,196.01,196.0,497.7235684]
[1755179734103,29.38070996,196.01,196.0,488.05252195]
[1755179734436,29.38070996,196.01,196.0,478.3814755]
[1755179734944,29.38070996,196.01,196.0,451.81042905]
[1755179735136,73.56070996,196.01,196.0,434.3099616]
[1755179735432,73.56070996,196.01,196.0,410.5399616]
[1755179735631,73.56070996,196.01,196.0,407.98891515]
[1755179735940,73.56070996,196.01,196.0,384.7456827]
[1755179736253,76.2244819,196.01,196.0,338.0056827]
[1755179736541,76.2244819,196.01,196.0,323.43133325]
[1755179736737,76.2244819,196.01,196.0,320.8802868]
[1755179737154,76.2244819,196.01,196.0,270.29016773]
[1755179737452,76.2244819,196.01,196.0,222.65167844]
[1755179737622,80.81608436,196.01,196.0,156.66285859]
[1755179737829,80.82638789,196.01,196.0,104.93631603]
[1755179738126,80.82638789,196.01,196.0,4.27908747]
[1755179738127,82.10276838,196.01,196.0,4.27908747]
[1755179738322,82.10276838,196.01,195.83,44.17]
[1755179738323,26.0,195.84,195.57,43.64]
[1755179738528,26.0,195.83,195.64,17.99868638]
[1755179738848,26.0,195.83,195.68,15.10621557]
[1755179739036,26.0,195.84,195.68,15.10621557]
[1755179739354,26.0,195.78,195.58,210.2]
[1755179739561,1.53241048,195.77,195.66,17.99868638]
[1755179739722,1.53194096,195.83,195.7,15.10621557]
[1755179739922,26.0,195.8,195.57,10.0]
[1755179740243,26.0,195.8,195.65,33.10490195]
[1755179740446,26.0,195.8,195.67,15.10621557]
[1755179740649,26.0,195.8,195.69,15.10621557]
[1755179740828,26.0,195.8,195.71,15.10621557]
[1755179741027,26.0,195.8,195.72,0.68]
[1755179741225,26.0,195.76,195.73,15.10621557]
[1755179741425,26.0,195.76,195.74,44.86]
[1755179741733,26.0,195.75,195.74,59.28621557]
[1755179741940,26.0,195.75,195.74,44.18]
[1755179742142,26.0,195.75,195.74,44.86]
[1755179742739,26.0,195.74,195.63,210.2]
[1755179742940,26.0,195.74,195.65,15.10621557]
[1755179743188,26.0,195.74,195.64,44.1]
[1755179743363,5.77631431,195.77,195.64,44.1]
[1755179743364,26.0,195.7,195.64,44.1]
[1755179743842,26.0,195.7,195.65,15.10621557]
[1755179744969,5.36453276,195.73,195.67,15.10621557]
[1755179745181,1.53272364,195.73,195.68,44.74]
[1755179745471,26.0,195.73,195.69,0.68]
[1755179745774,13.02615446,195.76,195.68,44.06]
[1755179746072,26.0,195.73,195.68,44.06]
[1755179746259,26.0,195.73,195.68,44.74]
[1755179746460,26.0,195.73,195.69,0.68]
[1755179746662,26.0,195.73,195.68,44.06]
[1755179746864,1.53248876,195.76,195.69,0.68]
[1755179747077,1.53248876,195.76,195.7,59.12621557]
[1755179747380,5.54712997,195.77,195.71,0.68]
[1755179747545,13.02149822,195.83,195.71,0.68]
[1755179747746,26.0,195.8,195.71,0.68]
[1755179747942,3.72224459,195.79,195.72,44.16]
[1755179748145,26.7,195.8,195.72,44.16]
[1755179748363,28.78406167,195.83,195.69,0.03]
[1755179748364,26.0,195.78,195.69,0.03]
[1755179748574,3.72890724,195.77,195.69,0.03]
[1755179748775,3.72890724,195.76,195.69,0.03]
[1755179749268,8.6845466,195.75,195.69,0.03]
[1755179749488,3.72890724,195.74,195.7,44.14]
[1755179749669,3.57598977,195.75,195.7,44.14]
[1755179749879,3.57598977,195.75,195.71,0.68]
[1755179750195,5.76256345,195.83,195.73,15.10621557]
[1755179750393,5.18780006,195.84,195.75,15.10621557]
[1755179750573,1.02127587,195.84,195.76,0.68]
[1755179750776,6.6524129,195.84,195.77,44.14]
[1755179750979,3.73717158,195.83,195.77,44.14]
[1755179751376,3.57471146,195.82,195.77,44.14]
[1755179751890,3.73814113,195.81,195.77,44.14]
[1755179752262,26.0,195.79,195.77,44.82]
[1755179752609,3.57471146,195.82,195.78,0.68]
[1755179753075,1.02134613,195.82,195.77,44.14]
[1755179753276,1.0215548,195.78,195.77,44.14]
[1755179753965,1.02129397,195.83,195.78,15.10621557]
[1755179754163,1.02129397,195.83,195.8,15.10621557]
[1755179754771,44.02624754,195.81,195.72,15.10621557]
[1755179754971,26.0,195.81,195.76,15.10621557]
[1755179755176,18.02624754,195.77,195.76,15.78621557]
[1755179755566,26.0,195.74,195.73,44.02]
[1755179755770,26.0,195.74,195.73,15.78621557]
[1755179755979,26.0,195.74,195.73,59.78621557]
[1755179756194,3.57507659,195.8,195.74,15.10621557]
[1755179756401,18.02624754,195.75,195.74,15.10621557]
[1755179756605,18.02624754,195.75,195.74,15.78621557]
[1755179756985,18.02624754,195.76,195.74,15.78621557]
[1755179757186,1.02145045,195.8,195.76,15.10621557]
[1755179757389,18.02624754,195.77,195.76,15.78621557]
[1755179757712,18.02624754,195.77,195.73,44.0]
[1755179757895,29.57507659,195.8,195.74,15.10621557]
[1755179758206,29.57507659,195.8,195.71,33.68]
[1755179758207,44.02624754,195.75,195.71,33.68]
[1755179758410,18.02624754,195.72,195.71,48.78621557]
[1755179758703,18.02624754,195.72,195.71,92.70621557]
[1755179759112,26.0,195.73,195.72,15.10621557]
[1755179759412,44.02624754,195.73,195.72,15.78621557]
[1755179759576,44.02624754,195.73,195.71,33.68]
[1755179759781,18.02624754,195.72,195.71,33.68]
[1755179759992,21.7809741,195.72,195.71,33.68]
[1755179760183,21.7809741,195.72,195.69,0.03]
[1755179760184,26.0,195.7,195.69,0.03]
[1755179760400,5.78656056,195.83,195.69,44.57]
[1755179760579,18.02624754,195.81,195.76,15.10621557]
[1755179760779,18.02624754,195.81,195.78,15.10621557]
[1755179761007,18.02624754,195.79,195.78,15.10621557]
[1755179761417,18.02624754,195.8,195.78,15.80621557]
[1755179761623,18.02624754,195.79,195.74,0.7]
[1755179761906,26.0,195.79,195.75,58.98621557]
[1755179762112,18.02624754,195.77,195.75,58.98621557]
[1755179762411,18.02624754,195.76,195.75,58.98621557]
[1755179762616,44.02624754,195.76,195.7,0.7]
[1755179762808,18.02624754,195.71,195.69,0.03]
[1755179763011,8.6809988,195.83,195.7,43.84]
[1755179763315,1.02160698,195.77,195.73,18.02624754]
[1755179763515,1.02160698,195.77,195.74,15.80621557]
[1755179763817,1.02160698,195.77,195.7,43.84]
[1755179763818,26.0,195.72,195.7,15.10621557]
[1755179764016,18.02624754,195.71,195.69,0.03]
[1755179764230,21.78280697,195.7,195.69,1e-08]
[1755179764401,3.75683636,195.7,195.69,43.92000001]
[1755179764599,0.68,195.75,195.69,1e-08]
[1755179764805,18.02624754,195.7,195.69,1e-08]
[1755179765015,22.46292502,195.7,195.69,1e-08]
[1755179765315,27.02207686,195.68,195.67,0.03]
[1755179765622,45.7283244,195.68,195.67,0.03]
[1755179765919,45.0483244,195.68,195.67,0.03]
[1755179766618,19.0483244,195.68,195.67,43.97]
[1755179766915,26.0,195.66,195.65,0.03]
[1755179767088,47.78260419,195.66,195.65,0.03]
[1755179767288,47.78196707,195.66,195.65,0.03]
[1755179767488,48.8041484,195.66,195.65,0.03]
[1755179767722,49.4841484,195.66,195.63,1e-08]
[1755179767923,18.02624754,195.64,195.63,1e-08]
[1755179768108,22.46196707,195.64,195.63,1e-08]
[1755179768304,26.0,195.61,195.58,15.10621557]
[1755179768498,8.68854133,195.66,195.57,33.68]
[1755179768499,18.02624754,195.59,195.57,33.68]
[1755179768814,18.02624754,195.58,195.57,33.68]
[1755179768990,26.0,195.56,195.55,0.03]
[1755179769191,29.75823142,195.56,195.55,1e-08]
[1755179769494,29.75823142,195.56,195.49,0.2]
[1755179769495,3.57964714,195.55,195.5,1e-08]
[1755179769822,18.02624754,195.51,195.5,1e-08]
[1755179770117,18.02624754,195.51,195.49,0.2]
[1755179770118,18.02624754,195.5,195.49,0.2]
[1755179770287,22.46447896,195.5,195.49,0.2]
[1755179770992,22.46325816,195.5,195.49,0.2]
[1755179771188,3.75701062,195.5,195.49,0.2]
[1755179771405,18.02624754,195.5,195.49,0.2]
[1755179771694,19.04926544,195.5,195.49,59.04621557]
[1755179771893,1.02286094,195.53,195.5,15.10621557]
[1755179772093,18.02624754,195.51,195.49,43.94]
[1755179772310,18.02624754,195.5,195.49,43.94]
[1755179772723,26.0,195.5,195.49,44.64]
[1755179773025,18.02624754,195.58,195.49,44.64]
[1755179773205,18.02624754,195.56,195.5,0.7]
[1755179773406,3.75766821,195.55,195.51,43.74]
[1755179773604,18.02624754,195.52,195.51,43.74]
[1755179773812,18.02624754,195.53,195.51,43.74]
[1755179774004,18.02624754,195.53,195.52,15.10621557]
[1755179774200,26.0,195.5,195.49,0.2]
[1755179774403,44.02624754,195.5,195.49,43.94]
[1755179774616,44.02624754,195.5,195.47,0.03]
[1755179774617,66.49342123,195.5,195.45,0.03]
[1755179774825,26.0,195.43,195.33,210.2]
[1755179775015,26.0,195.43,195.31,15.353515]
[1755179775016,4.44092615,195.42,195.34,43.74]
[1755179775198,18.02624754,195.48,195.31,15.353515]
[1755179775199,26.0,195.32,195.31,15.353515]
[1755179775393,49.49218489,195.32,195.31,15.353515]
[1755179775617,30.78593735,195.32,195.31,15.353515]
[1755179775820,56.99428962,195.32,195.27,43.74]
[1755179776127,44.02624754,195.28,195.27,43.74]
[1755179776736,26.0,195.25,195.22,33.7]
[1755179777026,26.0,195.2,195.12,210.2]
[1755179777328,26.0,195.2,195.15,15.36531]
[1755179777529,26.0,195.2,195.16,44.46]
[1755179777704,26.0,195.22,195.17,0.7]
[1755179778027,43.76,195.36,195.16,43.76]
[1755179778028,0.68,195.35,195.18,0.7]
[1755179778237,14.43306466,195.34,195.09,2.66645526]
[1755179778413,14.43306466,195.33,195.13,0.7]
[1755179778737,18.02624754,195.14,195.12,0.7]
[1755179779030,18.02624754,195.15,195.13,15.80621557]
[1755179779329,10.0,195.32,195.15,15.10621557]
[1755179779330,0.68,195.32,195.15,15.10621557]
[1755179779539,4.76408389,195.31,195.23,0.03]
[1755179779743,18.02624754,195.28,195.25,15.10621557]
[1755179779946,1.0240131,195.31,195.25,15.10621557]
[1755179779947,18.02624754,195.26,195.25,15.10621557]
[1755179780444,18.02624754,195.26,195.24,43.98]
[1755179780745,18.70624754,195.25,195.12,0.7]
[1755179781036,18.02624754,195.16,195.13,15.10621557]
[1755179781239,0.68,195.24,195.13,15.10621557]
[1755179781240,18.02624754,195.14,195.13,15.80621557]
[1755179781415,18.02624754,195.17,195.13,15.80621557]
[1755179781621,18.02624754,195.17,195.07,10.0]
[1755179781622,26.0,195.18,195.15,15.10621557]
[1755179781827,1.02432778,195.25,195.16,0.7]
[1755179782121,18.02624754,195.21,195.17,59.08621557]
[1755179782325,18.02624754,195.25,195.19,33.13246311]
[1755179782646,5.09525034,195.33,195.17,59.11621557]
[1755179782647,18.02624754,195.29,195.22,18.02624754]
[1755179782864,5.09525034,195.33,195.25,18.02624754]
[1755179783019,1.02375062,195.37,195.31,18.02624754]
[1755179783020,18.02624754,195.37,195.31,18.02624754]
[1755179783352,18.02624754,195.32,195.25,34.44]
[1755179783646,18.02624754,195.28,195.26,43.98]
[1755179783852,26.0,195.3,195.27,44.06]